fUSD/lending_fUSD_20240526
["ID","MTS","AMOUNT","RATE_DAILY","PERIOD"]
[327951994,1716699041560,-660.54915894,0.00012998,2]
[327951995,1716699041569,-205.47761302,0.00012998,2]
[327951996,1716699041578,-320.04525213,0.00012998,2]
[327951997,1716699041588,-155.25224554,0.00012998,2]
[327951998,1716699041598,-155.87413507,0.00012998,2]
[327951999,1716699041607,-1000.0,0.00012998,2]
[327952000,1716699041616,-1000.0,0.00012998,2]
[327952001,1716699041625,-1000.0,0.00012998,2]
[327952002,1716699041635,-1000.0,0.00012998,2]
[327952003,1716699041644,-1000.0,0.00012998,2]
[327952004,1716699041653,-1000.0,0.00012998,2]
[327952005,1716699041663,-1000.0,0.00012998,2]
[327952006,1716699041673,-1000.0,0.00012998,2]
[327952007,1716699041682,-1000.0,0.00012998,2]
[327952008,1716699041691,-1000.0,0.00012998,2]
[327952009,1716699041700,-1000.0,0.00012998,2]
[327952010,1716699041710,-1000.0,0.00012998,2]
[327952011,1716699041719,-1000.0,0.00012998,2]
[327952012,1716699041729,-1000.0,0.00012998,2]
[327952013,1716699041739,-1000.0,0.00012998,2]
[327952014,1716699041748,-1000.0,0.00012998,2]
[327952015,1716699041758,-1000.0,0.00012998,2]
[327952016,1716699041768,-1000.0,0.00012998,2]
[327952017,1716699041778,-1000.0,0.00012998,2]
[327952018,1716699041788,-1000.0,0.00012998,2]
[327952019,1716699041798,-1000.0,0.00012998,2]
[327952020,1716699041807,-1000.0,0.00012998,2]
[327952021,1716699041816,-1000.0,0.00012998,2]
[327952022,1716699041826,-1000.0,0.00012998,2]
[327952023,1716699041837,-1000.0,0.00012998,2]
[327952024,1716699041847,-1000.0,0.00012998,2]
[327952025,1716699041856,-1000.0,0.00012998,2]
[327952026,1716699041866,-1000.0,0.00012998,2]
[327952027,1716699041874,-1000.0,0.00012998,2]
[327952028,1716699041884,-1000.0,0.00012998,2]
[327952029,1716699041894,-1000.0,0.00012998,2]
[327952030,1716699041903,-1000.0,0.00012998,2]
[327952031,1716699041912,-1000.0,0.00012998,2]
[327952032,1716699041922,-1000.0,0.00012998,2]
[327952033,1716699041931,-1000.0,0.00012998,2]
[327952034,1716699041940,-1000.0,0.00012998,2]
[327952035,1716699041949,-1000.0,0.00012998,2]
[327952036,1716699041959,-1000.0,0.00012998,2]
[327952037,1716699041967,-1000.0,0.00012998,2]
[327952038,1716699041978,-1000.0,0.00012998,2]
[327952039,1716699041989,-1000.0,0.00012998,2]
[327952040,1716699041999,-1000.0,0.00012998,2]
[327952041,1716699042008,-1000.0,0.00012998,2]
[327952042,1716699042017,-1000.0,0.00012998,2]
[327952043,1716699042026,-1000.0,0.00012998,2]
[327952044,1716699042035,-1000.0,0.00012998,2]
[327952045,1716699042044,-1000.0,0.00012998,2]
[327952046,1716699042053,-1000.0,0.00012998,2]
[327952047,1716699042063,-711.0,0.00012998,2]
[327952048,1716699042072,-8759.06300575,0.00012999,2]
[327952049,1716699042082,-210.11527246,0.00012999,2]
[327952050,1716699042091,-3114.61572789,0.00012999,2]
[327952051,1716699042100,-273813.8446682,0.00013,2]
[327952055,1716699042878,-665.15161998,0.00013,2]
[327952059,1716699044441,-1500.0,7.446e-05,2]
[327952060,1716699044451,-313604.00492031,0.00013,2]
[327952061,1716699044503,-16751.85427636,0.00013,2]
[327952063,1716699045773,-397.15513532,0.000129,2]
[327952064,1716699045783,-2526.38719988,0.00013,2]
[327952065,1716699045853,-75059.99999999,0.00013,2]
[327952066,1716699046009,-458.72174955,0.00013,2]
[327952067,1716699046023,-3063.31053378,0.00013,2]
[327952068,1716699046035,-462.8253553,0.00013,2]
[327952069,1716699046049,-264816.87318442,0.00013,2]
[327952070,1716699046118,-562.66712687,0.00012998,2]
[327952071,1716699046128,-4451.98592311,0.00013,2]
[327952072,1716699046139,-3000.47190629,0.00013,2]
[327952075,1716699078979,-150.0,7.068e-05,2]
[327952076,1716699082194,-150.0,7.068e-05,2]
[327952077,1716699082629,-150.0,7.068e-05,2]
[327952078,1716699083133,-150.0,7.068e-05,2]
[327952079,1716699085270,-150.0,7.068e-05,2]
[327952080,1716699087720,-150.0,7.068e-05,2]
[327952081,1716699088179,-150.0,7.068e-05,2]
[327952082,1716699088794,-150.0,7.068e-05,2]
[327952083,1716699093039,-297.93495178,7.068e-05,2]
[327952084,1716699094010,-245.76381709,7.068e-05,2]
[327952085,1716699094576,-177.44,7.068e-05,2]
[327952087,1716699096042,-169.13285556,7.068e-05,2]
[327952088,1716699096494,-155.0,7.068e-05,2]
[327952089,1716699097489,-150.0,7.068e-05,2]
[327952090,1716699097930,-150.0,7.068e-05,2]
[327952091,1716699098488,-150.0,7.068e-05,2]
[327952092,1716699099645,-150.0,7.068e-05,2]
[327952093,1716699100491,-150.0,7.068e-05,2]
[327952096,1716699442469,-600.0,0.00010851,2]
[327952097,1716699670619,-290.66698873,9.179e-05,2]
[327952098,1716699670639,-210.49319076,9.18e-05,2]
[327952099,1716699670658,-150.0,9.183e-05,2]
[327952100,1716699670681,-286.55193867,0.0001,2]
[327952101,1716699670704,-686.24,0.00010227,2]
[327952102,1716699670726,-580.6964074,0.00010851,2]
[327952103,1716699670747,-299.15348563,0.00010851,2]
[327952104,1716699670767,-180.31160513,0.00010851,2]
[327952105,1716699670786,-410.08212737,0.00010851,2]
[327952106,1716699670806,-150.0,0.00010857,2]
[327952107,1716699670825,-15735.8694,0.00010858,2]
[327952108,1716699670844,-167.07,0.00010887,2]
[327952109,1716699670864,-1650.0,0.00010958,2]
[327952110,1716699670884,-452.24,0.00010959,2]
[327952111,1716699670906,-376.86,0.00010959,2]
[327952112,1716699670927,-314.05,0.00010959,2]
[327952113,1716699670951,-261.71,0.00010959,2]
[327952114,1716699670973,-218.09,0.00010959,2]
[327952115,1716699670993,-499.99,0.00010959,2]
[327952116,1716699671013,-181.75,0.00010959,2]
[327952117,1716699671034,-151.45,0.00010959,2]
[327952118,1716699671055,-757.3,0.00010959,2]
[327952119,1716699671074,-500.0,0.00011341,2]
[327952120,1716699671094,-488.24,0.00011386,2]
[327952121,1716699671113,-1852.42,0.00011386,2]
[327952122,1716699671134,-1000.0,0.00011559,2]
[327952123,1716699671154,-190.98000651,0.00011696,2]
[327952124,1716699671174,-250.0,0.00011748,2]
[327952125,1716699671194,-500.0,0.00011751,2]
[327952126,1716699681860,332.63211733,0.00010851,2]
[327952127,1716699688271,180.31160513,0.00011751,2]
[327952128,1716699689375,410.08212737,0.00011751,2]
[327952129,1716699698746,167.07,0.0001005,2]
[327952130,1716699706273,180.31160513,0.00011751,2]
[327952131,1716699711938,458.51459856,0.00011751,2]
[327952132,1716699727794,2549.05213827,8.813e-05,2]
[327952133,1716699728264,180.31160513,0.00011751,2]
[327952134,1716699734589,11812.12165804,0.00011751,2]
[327952141,1716700208477,-1579.094126,8.809e-05,2]
[327952142,1716700208500,-200.0,8.811e-05,2]
[327952143,1716700208522,-2220.905874,8.813e-05,2]
[327952144,1716700210900,-328.68224761,8.813e-05,2]
[327952145,1716700210924,-150.0,9.201e-05,2]
[327952146,1716700210945,-280.0,9.692e-05,2]
[327952147,1716700210967,-280.0,9.692e-05,2]
[327952148,1716700210989,-280.0,9.692e-05,2]
[327952149,1716700211012,-150.0,9.841e-05,2]
[327952150,1716700213900,-150.0,9.842e-05,2]
[327952151,1716700218202,2531.31775239,8.807e-05,2]
[327952152,1716700218224,4000.0,8.807e-05,2]
[327952153,1716700218260,4000.0,8.807e-05,2]
[327952154,1716700218287,4000.0,8.807e-05,2]
[327952155,1716700218312,1963.56994523,8.807e-05,2]
[327952156,1716700232394,-501.92,9.842e-05,2]
[327952157,1716700232404,-165.44237526,0.00010825,2]
[327952158,1716700232424,-44.55762474,0.00010825,2]
[327952159,1716700232433,-23900.0,0.00011478,2]
[327952160,1716700232443,-999.99,0.00011478,2]
[327952161,1716700232453,-3799.5,0.0001155,2]
[327952162,1716700232463,-200.0,0.00011557,2]
[327952163,1716700232474,-178.53,0.00011599,2]
[327952164,1716700232483,-250.0,0.0001164,2]
[327952165,1716700232494,-235.6,0.00011641,2]
[327952166,1716700232505,-12805.92660323,0.00011751,2]
[327952167,1716700232515,-180.31160513,0.00011751,2]
[327952168,1716700232523,-289.33910277,0.00011751,2]
[327952169,1716700232532,-945.142,0.00011751,2]
[327952170,1716700232542,-177.68,0.00011848,2]
[327952171,1716700232552,-487.41,0.00011888,2]
[327952172,1716700232561,-293.0,0.00011908,2]
[327952173,1716700232571,-575.63967207,0.00011942,2]
[327952174,1716700232580,-933.19,0.00011952,2]
[327952175,1716700232591,-322.86,0.00011976,2]
[327952176,1716700232600,-2606.040207,0.00012,2]
[327952177,1716700232609,-250.0,0.00012046,2]
[327952178,1716700232619,-150.0,0.00012066,2]
[327952179,1716700232629,-651.92,0.00012106,2]
[327952180,1716700232638,-1500.0,0.00012234,2]
[327952181,1716700232647,-166.87,0.00012497,2]
[327952182,1716700232656,-257.1106,0.000128,2]
[327952183,1716700232665,-210.71911623,0.00012898,2]
[327952184,1716700232675,-1182.48935302,0.00012898,2]
[327952185,1716700232683,-2500.0,0.00012898,2]
[327952186,1716700232692,-1247.02141285,0.00012899,2]
[327952187,1716700232701,-324.36891214,0.00012899,2]
[327952188,1716700232710,-3008.87671276,0.000129,2]
[327952189,1716700232719,-775.9183,0.000129,2]
[327952190,1716700232728,-9442.2279,0.000129,2]
[327952191,1716700232737,-8201.2761,0.000129,2]
[327952192,1716700232747,-4471.9091,0.000129,2]
[327952193,1716700232756,-164.1602,0.000129,2]
[327952194,1716700232765,-102839.3765,0.000129,2]
[327952195,1716700232774,-968.65954644,0.000129,2]
[327952196,1716700232784,-130.97836505,0.000129,2]
[327952197,1716700232795,-54.97301782,0.000129,2]
[327952198,1716700232804,-731.3032575,0.000129,2]
[327952199,1716700232813,-384.1729406,0.000129,2]
[327952200,1716700232823,-284.4263,0.00012935,2]
[327952202,1716700232832,-1626.97839243,0.00012968,2]
[327952203,1716700232841,-168.77868552,0.00012989,2]
[327952205,1716700232850,-168.77868552,0.0001299,2]
[327952207,1716700232859,-151.93,0.0001299,2]
[327952209,1716700232868,-2484.91379606,0.00012997,2]
[327952210,1716700232877,-325.4537094,0.00012998,2]
[327952211,1716700232886,-345.71235567,0.00012998,2]
[327952212,1716700232895,-605.4629941,0.00012998,2]
[327952213,1716700232904,-884.2717764,0.00012998,2]
[327952214,1716700232914,-2262.36919646,0.00012998,2]
[327952215,1716700232923,-7787.26141899,0.00012998,2]
[327952216,1716700232942,-7966.72183934,0.00012998,2]
[327952217,1716700232954,-12936.83377775,0.00012998,2]
[327952218,1716700232964,-52052.53761905,0.00012999,2]
[327952219,1716700232973,-356467.00396529,0.00012999,2]
[327952220,1716700232984,-153.42464663,0.00012999,2]
[327952221,1716700232993,-174522.06987862,0.00013,2]
[327952222,1716700233004,-781.95019923,0.00013,2]
[327952223,1716700233015,-2130.44985288,0.00013,2]
[327952224,1716700233029,-827.13712285,0.00013,2]
[327952225,1716700233041,-6370.88873846,0.00013,2]
[327952226,1716700233222,-418.90217464,0.00013,2]
[327952227,1716700233233,-259.86200001,0.00013,2]
[327952228,1716700233244,-357.4799971,0.00013,2]
[327952229,1716700233264,-199296.68214465,0.00013,2]
[327952230,1716700233275,-544.0998858,0.00013,2]
[327952231,1716700233288,-626.71201654,0.00013,2]
[327952232,1716700233298,-346.48303694,0.00013,2]
[327952233,1716700233309,-896.99068152,0.00013,2]
[327952234,1716700233320,-700.206448,0.00013,2]
[327952235,1716700237184,290.66698873,9.841e-05,2]
[327952239,1716700237952,-946.67592046,0.00013,2]
[327952241,1716700237996,-1252.900875,0.00013,2]
[327952242,1716700238008,-6628.30439943,0.00013,2]
[327952243,1716700238187,-795.6334386,0.00013,2]
[327952244,1716700238198,-439.45564214,0.00013,2]
[327952245,1716700238220,-351.13088306,0.00013,2]
[327952246,1716700238232,-32343.48186147,0.00013,2]
[327952247,1716700238284,-91625.43773575,0.00013,2]
[327952248,1716700238296,-835.11710452,0.00013,2]
[327952249,1716700238330,-38076.34820925,0.00013,2]
[327952268,1716700240519,-2764.25611306,0.00013,2]
[327952269,1716700240533,-53126.63443164,0.00013,2]
[327952270,1716700240847,-530.86535505,0.00013,2]
[327952271,1716700240860,-363.6,0.00013,2]
[327952273,1716700242987,-7054.43033884,0.00013,2]
[327952274,1716700243757,-522.85720027,0.00013,2]
[327952275,1716700243769,-377.93999662,0.00013,2]
[327952276,1716700243783,-2712.36498012,0.00013,2]
[327952277,1716700243795,-8432.95043861,0.00013,2]
[327952278,1716700243807,-26603.54763778,0.00013,2]
[327952279,1716700243819,-6029.49838837,0.00013,2]
[327952280,1716700243830,-836.60016149,0.00013,2]
[327952281,1716700243841,-7617.57675623,0.00013,2]
[327952282,1716700243852,-1161.74638928,0.00013,2]
[327952283,1716700246048,-251.5721885,0.000129,2]
[327952284,1716700246058,-1528.41421291,0.00013,2]
[327952285,1716700246071,-1408.82174182,0.00013,2]
[327952286,1716700246096,-14994.31883665,0.00013,2]
[327952287,1716700246108,-630.19475934,0.00013,2]
[327952288,1716700246143,-585.35274278,0.00013,2]
[327952289,1716700246188,-3620.68944261,0.00013,2]
[327952290,1716700246200,-526.995,0.00013,2]
[327952291,1716700246233,-66095.26676568,0.00013,2]
[327952292,1716700246244,-744.912,0.00013,2]
[327952293,1716700246255,-515.25,0.00013,2]
[327952294,1716700246379,-28944.85528841,0.00013,2]
[327952295,1716700247781,1203.36481987,6.605e-05,2]
[327952296,1716700263877,542.39824617,8.807e-05,2]
[327952297,1716700263898,360.14449922,8.807e-05,2]
[327952298,1716700668035,151.052614,0.00031,120]
[327952299,1716700669163,151.052614,0.00031,120]
[327952300,1716700675908,2549.05213827,6.605e-05,2]
[327952301,1716700687153,155.1551557,8.807e-05,2]
[327952302,1716700688812,157.052614,0.00031,120]
[327952303,1716700691830,580.12291282,6.605e-05,2]
[327952304,1716700698118,355.52529399,8.807e-05,2]
[327952305,1716700698140,4000.0,8.807e-05,2]
[327952306,1716700698163,4000.0,8.807e-05,2]
[327952307,1716700698184,4000.0,8.807e-05,2]
[327952308,1716700698205,4000.0,8.807e-05,2]
[327952309,1716700698232,3383.82643093,8.807e-05,2]
[327952310,1716700699441,616.17356907,8.807e-05,2]
[327952311,1716700699462,4000.0,8.807e-05,2]
[327952312,1716700699484,4000.0,8.807e-05,2]
[327952313,1716700699506,4000.0,8.807e-05,2]
[327952314,1716701220570,-4000.0,8.715e-05,2]
[327952315,1716701221834,-2779.666757,8.715e-05,2]
[327952316,1716701221854,-1220.333243,8.759e-05,2]
[327952317,1716701222259,-4000.0,8.759e-05,2]
[327952318,1716701222584,-349.10299176,8.759e-05,2]
[327952319,1716701222606,-155.0,8.805e-05,2]
[327952320,1716701222626,-1181.07695692,8.805e-05,2]
[327952321,1716701222648,-155.31429806,8.805e-05,2]
[327952322,1716701222669,-327.02252959,8.805e-05,2]
[327952323,1716701222690,-155.16404101,8.805e-05,2]
[327952324,1716701222710,-450.09509587,8.805e-05,2]
[327952325,1716701222730,-155.0,8.806e-05,2]
[327952326,1716701222751,-1072.22408679,8.806e-05,2]
[327952327,1716701222954,-150.0,8.804e-05,2]
[327952328,1716701222976,-3850.0,8.806e-05,2]
[327952329,1716701223306,-4000.0,8.806e-05,2]
[327952330,1716701223765,-2990.73764482,8.806e-05,2]
[327952331,1716701223787,-1009.26235518,8.807e-05,2]
[327952332,1716701224114,-4000.0,8.807e-05,2]
[327952333,1716701224526,-2603.84583075,8.807e-05,2]
[327952334,1716701224549,-1396.15416925,8.807e-05,2]
[327952335,1716701225114,-4000.0,8.807e-05,2]
[327952336,1716701225795,-4000.0,8.807e-05,2]
[327952337,1716701248660,-4000.0,8.806e-05,2]
[327952338,1716701249042,-1566.32851432,8.806e-05,2]
[327952339,1716701249066,-2433.67148568,8.806e-05,2]
[327952340,1716701249663,-4000.0,8.806e-05,2]
[327952341,1716701250293,-4000.0,8.806e-05,2]
[327952342,1716701250976,-4000.0,8.806e-05,2]
[327952343,1716701251881,-4000.0,8.806e-05,2]
[327952344,1716701252723,-4000.0,8.806e-05,2]
[327952345,1716701253426,-4000.0,8.806e-05,2]
[327952346,1716701254136,-4000.0,8.806e-05,2]
[327952347,1716701254902,-4000.0,8.806e-05,2]
[327952348,1716701364233,-177.67866759,6.605e-05,2]
[327952349,1716701406380,-150.0,6.604e-05,2]
[327952354,1716701432586,-122.32133241,6.605e-05,2]
[327952355,1716701432596,-1361.17372588,6.605e-05,2]
[327952356,1716701432605,-3366.50494171,6.605e-05,2]
[327952357,1716701432626,-164990.09095415,6.605e-05,2]
[327952358,1716701432637,-54101.60243352,6.605e-05,2]
[327952359,1716701432658,-17266.86305336,6.605e-05,2]
[327952360,1716701432669,-482.87677638,6.605e-05,2]
[327952361,1716701433192,-552.97642451,6.605e-05,2]
[327952362,1716701433204,-339.18,6.605e-05,2]
[327952363,1716701433216,-347.775,6.605e-05,2]
[327952364,1716701433228,-559.18577829,6.605e-05,2]
[327952365,1716701433256,-484.28691844,6.605e-05,2]
[327952372,1716701438376,-418.02892662,6.605e-05,2]
[327952373,1716701438551,-4667.96338491,6.605e-05,2]
[327952374,1716701438562,-326.6444601,6.605e-05,2]
[327952375,1716701438604,-21144.08965766,6.605e-05,2]
[327952380,1716701438908,-150.0,6.605e-05,2]
[327952385,1716701441173,-2467.30408745,6.605e-05,2]
[327952386,1716701441185,-669.3090582,6.605e-05,2]
[327952387,1716701441198,-561.22036998,6.605e-05,2]
[327952388,1716701441209,-12090.89885701,6.605e-05,2]
[327952389,1716701441220,-17357.62500003,6.605e-05,2]
[327952390,1716701441232,-245618.13385544,6.605e-05,2]
[327952391,1716701441242,-20233.27559152,6.605e-05,2]
[327952392,1716701441252,-7523.48930144,6.605e-05,2]
[327952393,1716701441261,-19743.29045707,6.605e-05,2]
[327952394,1716701441271,-155.0,6.605e-05,2]
[327952395,1716701441280,-177.67866759,8.804e-05,2]
[327952396,1716701441290,-1512.47562545,8.805e-05,2]
[327952397,1716701441299,-25496.3491645,8.805e-05,2]
[327952398,1716701441309,-7870.62199573,8.805e-05,2]
[327952399,1716701441319,-3653.36678271,8.806e-05,2]
[327952400,1716701441329,-159.86649368,8.806e-05,2]
[327952401,1716701441338,-155.0,8.807e-05,2]
[327952402,1716701441348,-662.93,9.362e-05,2]
[327952403,1716701441357,-14996.2907,9.9e-05,2]
[327952404,1716701441367,-179.68068244,0.0001,2]
[327952405,1716701441377,-250.0,0.00010874,2]
[327952406,1716701441387,-150.0,0.00010959,2]
[327952407,1716701441396,-157.26194996,0.00011,2]
[327952408,1716701441406,-4585.37,0.00011076,2]
[327952409,1716701441416,-8145.93,0.00011087,2]
[327952410,1716701441428,-167.61,0.00011122,2]
[327952411,1716701441438,-23900.0,0.00011122,2]
[327952412,1716701441448,-250.0,0.00011134,2]
[327952413,1716701441458,-160.0,0.00011134,2]
[327952414,1716701441467,-1249.46,0.0001118,2]
[327952415,1716701441476,-154.82,0.00011182,2]
[327952416,1716701441486,-200.0,0.00011244,2]
[327952417,1716701441496,-152.56,0.00011252,2]
[327952418,1716701441505,-234.51,0.00011252,2]
[327952419,1716701441515,-154.82,0.00011279,2]
[327952420,1716701441525,-167.05,0.00011289,2]
[327952421,1716701441534,-154.82,0.00011376,2]
[327952422,1716701441544,-154.82,0.00011473,2]
[327952423,1716701441553,-154.82,0.00011571,2]
[327952424,1716701441562,-662.93,0.00011626,2]
[327952425,1716701441572,-154.82,0.00011668,2]
[327952426,1716701441582,-154.82,0.00011765,2]
[327952427,1716701441591,-640.78,0.00011896,2]
[327952428,1716701441601,-640.78,0.00011899,2]
[327952429,1716701441610,-640.78,0.00011902,2]
[327952430,1716701441620,-640.78,0.00011905,2]
[327952431,1716701441629,-640.78,0.00011909,2]
[327952432,1716701441639,-640.78,0.00011912,2]
[327952433,1716701441648,-640.78,0.00011915,2]
[327952434,1716701441658,-640.78,0.00011918,2]
[327952435,1716701441667,-640.78,0.00011921,2]
[327952436,1716701441676,-640.78,0.00011924,2]
[327952437,1716701441685,-640.78,0.00011927,2]
[327952438,1716701441695,-640.78,0.0001193,2]
[327952439,1716701441704,-640.78,0.00011934,2]
[327952440,1716701441713,-640.78,0.00011937,2]
[327952441,1716701441722,-640.78,0.0001194,2]
[327952442,1716701441732,-640.78,0.00011943,2]
[327952443,1716701441741,-640.78,0.00011946,2]
[327952444,1716701441750,-640.78,0.00011949,2]
[327952445,1716701441759,-640.78,0.00011952,2]
[327952446,1716701441769,-640.78,0.00011955,2]
[327952447,1716701441779,-160.0,0.00012526,2]
[327952448,1716701441788,-840.0,0.00012716,2]
[327952449,1716701441798,-1000.0,0.000128,2]
[327952450,1716701441807,-407.78578406,0.00012869,2]
[327952451,1716701441817,-1996.09354,0.0001287,2]
[327952452,1716701441827,-153.22,0.0001289,2]
[327952453,1716701441836,-500.0,0.00012895,2]
[327952454,1716701441846,-200.0,0.00012896,2]
[327952455,1716701441855,-500.0,0.00012896,2]
[327952456,1716701441864,-2758.13698666,0.000129,2]
[327952457,1716701441873,-145994.7435,0.000129,2]
[327952458,1716701441882,-6750.4434,0.000129,2]
[327952459,1716701441891,-167.71479234,0.000129,2]
[327952460,1716701441900,-206.4816037,0.000129,2]
[327952461,1716701441910,-390.67901147,0.00012986,2]
[327952462,1716701441920,-153.22,0.0001299,2]
[327952463,1716701441930,-153.22,0.0001299,2]
[327952464,1716701441939,-153.22,0.0001299,2]
[327952465,1716701441948,-153.22,0.0001299,2]
[327952466,1716701441957,-153.22,0.0001299,2]
[327952467,1716701441966,-153.22,0.0001299,2]
[327952468,1716701441976,-153.22,0.0001299,2]
[327952469,1716701441985,-153.22,0.0001299,2]
[327952470,1716701441995,-153.22,0.0001299,2]
[327952471,1716701442004,-153.22,0.0001299,2]
[327952472,1716701442013,-153.22,0.0001299,2]
[327952473,1716701442023,-153.22,0.0001299,2]
[327952474,1716701442032,-153.22,0.0001299,2]
[327952475,1716701442041,-153.22,0.0001299,2]
[327952476,1716701442051,-153.22,0.0001299,2]
[327952477,1716701442060,-153.22,0.0001299,2]
[327952478,1716701442070,-153.22,0.0001299,2]
[327952479,1716701442079,-236868.64474641,0.00013,2]
[327952480,1716701442099,-25976.55972304,0.00013,2]
[327952481,1716701442111,-4506.79745098,0.00013,2]
[327952482,1716701442301,-2171.93263933,0.00013,2]
[327952484,1716701442317,-1125.22814025,0.00013,2]
[327952489,1716701443854,-4149.46000906,0.00013,2]
[327952490,1716701443866,-514.01,0.00013,2]
[327952491,1716701443877,-2992.66047825,0.00013,2]
[327952492,1716701443889,-9028.13688312,0.00013,2]
[327952493,1716701443901,-302.0,0.00013,2]
[327952495,1716701444363,-263.95605343,0.00013,2]
[327952497,1716701444377,-300.0,0.00013,2]
[327952498,1716701444391,-744.5,0.00013,2]
[327952499,1716701444403,-12802.0,0.00013,2]
[327952500,1716701444416,-931.14427352,0.00013,2]
[327952501,1716701444436,-3224.73762716,0.00013,2]
[327952502,1716701444448,-5508.63109791,0.00013,2]
[327952504,1716701446792,-1361.17372588,6.605e-05,2]
[327952505,1716701446801,-3982.37520347,0.00013,2]
[327952506,1716701446816,-3514.29202199,0.00013,2]
[327952507,1716701446827,-41068.81970123,0.00013,2]
[327952508,1716701446838,-51544.63695263,0.00013,2]
[327952509,1716701446857,-115805.89248982,0.00013,2]
[327952510,1716701446880,-338.43840616,0.00012999,2]
[327952511,1716701446904,-410.15274604,0.00012999,2]
[327952512,1716701446917,-1168.42204247,0.00012999,2]
[327952513,1716701446929,-1014.12865042,0.00012999,2]
[327952514,1716701446951,-693.01,0.00012999,2]
[327952515,1716701446999,-3519.4625207,0.00012999,2]
[327952516,1716701680340,-447.21719507,6.259e-05,2]
[327952517,1716701680363,-290.66698873,6.259e-05,2]
[327952518,1716701680385,-234.48123736,6.26e-05,2]
[327952519,1716701680408,-155.0,6.261e-05,2]
[327952520,1716701680429,-4602.20461533,6.261e-05,2]
[327952521,1716701680451,-4748.79596388,6.261e-05,2]
[327952522,1716701680473,-306.62595739,6.262e-05,2]
[327952523,1716701680495,-2224.63457583,6.262e-05,2]
[327952524,1716701680521,-686.97496708,6.262e-05,2]
[327952525,1716701680543,-322.07738525,6.262e-05,2]
[327952526,1716701680565,-266.60822412,6.263e-05,2]
[327952527,1716701680587,-624.21897666,6.263e-05,2]
[327952528,1716701680613,-1791.4424551,6.263e-05,2]
[327952529,1716701680634,-155.0,6.263e-05,2]
[327952530,1716701680656,-3287.82954979,6.263e-05,2]
[327952531,1716701680677,-155.0,6.263e-05,2]
[327952532,1716701680700,-43345.87584374,6.265e-05,2]
[327952533,1716701680723,-12799.34606467,6.265e-05,2]
[327952534,1716702164638,-686.97496708,4.684e-05,2]
[327952535,1716702164664,-1246.26126998,4.685e-05,2]
[327952536,1716702164691,-314.25075192,4.685e-05,2]
[327952537,1716702164723,-1299.11942176,4.685e-05,2]
[327952538,1716702164751,-290.66698873,4.685e-05,2]
[327952539,1716702164777,-210.49319076,4.686e-05,2]
[327952540,1716702164807,-155.0,4.686e-05,2]
[327952541,1716702164834,-1180.6964074,4.687e-05,2]
[327952542,1716702164860,-290.66698873,4.688e-05,2]
[327952543,1716702164888,-150.0,4.691e-05,2]
[327952544,1716702164914,-150.0,4.691e-05,2]
[327952545,1716702164941,-2549.05213827,4.699e-05,2]
[327952546,1716702164967,-1883.69165634,5e-05,2]
[327952547,1716702164994,-535.07981141,5e-05,2]
[327952548,1716702165022,-19512.71640385,5e-05,2]
[327952549,1716702165049,-201.14236609,5e-05,2]
[327952550,1716702165076,-837.27596995,5e-05,2]
[327952551,1716702165102,-2188.66829677,5e-05,2]
[327952552,1716702165129,-4748.79596388,5e-05,2]
[327952553,1716702165155,-2002.70430529,5e-05,2]
[327952554,1716702165182,-1206.57274375,5e-05,2]
[327952555,1716702165209,-536.37517664,5e-05,2]
[327952556,1716702165235,-2330.98143457,5e-05,2]
[327952557,1716702165261,-156.28621988,5e-05,2]
[327952558,1716702165286,-1791.4424551,5e-05,2]
[327952559,1716702165312,-489.37546988,5.01e-05,2]
[327952560,1716702165337,-327.12986604,5.01e-05,2]
[327952561,1716702165365,-154.51,5.011e-05,2]
[327952562,1716702165391,-4281.53119452,5.106e-05,2]
[327952563,1716702165416,-23900.0,5.11e-05,2]
[327952564,1716702165440,-500.0,5.112e-05,2]